[Event "Polonia Wroclaw Masters Cup-IM"]
[Site "Wroclaw"]
[Date "2019.05.01"]
[Round "5.4"]
[White "Fiedorek, Michal"]
[Black "Martynyuk, Elizaveta"]
[Result "1/2-1/2"]
[ECO "B36"]
[WhiteElo "2075"]
[BlackElo "2141"]
[Annotator "NA"]
[PlyCount "136"]
[EventDate "2019.04.28"]
[EventType "tourn"]
[EventCountry "POL"]
[SourceTitle "playchess.com"]
[Source "ChessBase"]
[SourceQuality "1"]
[TimeControl "40/5400+30:900+30"]

1. e4 {[%emt 0:00:00]} c5 {[%emt 0:08:47]} 2. Nf3 {[%emt 0:00:49]} Nc6 {[%emt 0:00:12]} 3. d4 {[%emt 0:00:16]} cxd4 {[%emt 0:00:04]} 4. Nxd4 {[%emt 0:00:11]} g6 {[%emt 0:00:02]} 5. c4 {[%emt 0:00:25]} Nf6 {[%emt 0:00:05]} 6. Nc3 {[%emt 0:00:39]} Nxd4 {[%emt 0:00:04]} 7. Qxd4 {[%emt 0:00:08]} d6 {[%emt 0:00:03]} 8. Be2 {[%emt 0:00:27]} Bg7 {[%emt 0:00:02]} 9. Be3 {[%emt 0:00:15]} O-O {[%emt 0:00:06]} 10. Qd2 {[%emt 0:00:09]} a5 {[%emt 0:00:06]} 11. Rd1 {[%emt 0:01:01]} Be6 {[%emt 0:03:07]} 12. O-O {[%emt 0:00:44]} a4 {[%emt 0:00:05]} 13. Bd4 {[%emt 0:02:03]} Nd7 {[%emt 0:04:05]} 14. Qe3 {[%emt 0:03:07]} Bxd4 {[%emt 0:01:10]} 15. Rxd4 {[%emt 0:00:29]} Qb6 {[%emt 0:03:26]} 16. f4 {[%emt 0:12:40]} Rfc8 {[%emt 0:04:04]} 17. b3 {[%emt 0:04:36]} axb3 {[%emt 0:00:09]} 18. axb3 {[%emt 0:00:08]} Nc5 {[%emt 0:01:59]} 19. Rd2 {[%emt 0:12:50]} Ra3 {[%emt 0:12:20]} 20. f5 {[%emt 0:12:21]} Qxb3 {[%emt 0:00:10]} 21. fxe6 {[%emt 0:15:08]} Qxc3 {[%emt 0:00:06]} 22. exf7+ {[%emt 0:00:25]} Kg7 {[%emt 0:02:34]} 23. Qxc3+ {[%emt 0:00:34]} Rxc3 {[%emt 0:00:07]} 24. e5 {[%emt 0:00:21]} dxe5 {[%emt 0:05:35]} 25. Rd5 {[%emt 0:00:27]} b6 {[%emt 0:01:35]} 26. Rxe5 {[%emt 0:02:43]} Kf8 {[%emt 0:01:14]} 27. h4 {[%emt 0:04:33]} Nd7 {[%emt 0:10:43]} 28. Re6 {[%emt 0:07:21]} Rb8 {[%emt 0:01:02]} 29. h5 {[%emt 0:03:16]} Nf6 {[%emt 0:00:27]} 30. hxg6 {[%emt 0:00:56]} hxg6 {[%emt 0:00:09]} 31. Rb1 {[%emt 0:03:00]} Rc2 {[%emt 0:00:48]} 32. Bd3 {[%emt 0:01:12]} Rc3 {[%emt 0:02:11]} 33. Bxg6 {[%emt 0:01:18]} Rg3 {[%emt 0:01:08]} 34. Bf5 {[%emt 0:01:43]} Rg5 {[%emt 0:02:27]} 35. Bh3 {[%emt 0:03:11]} b5 {[%emt 0:00:10]} 36. Re3 {[%emt 0:03:58]} Kxf7 {[%emt 0:00:44]} 37. Be6+ {[%emt 0:00:41]} Kg7 {[%emt 0:12:35]} 38. Reb3 {[%emt 0:00:20]} b4 {[%emt 0:00:43]} 39. Rxb4 {[%emt 0:00:24]} Rd8 {[%emt 0:00:13]} 40. Rb7 {[%emt 0:00:00]} Nh5 {[%emt 0:00:00]} 41. Bd5 {[%emt 0:06:05]} Re5 {[%emt 0:04:16]} 42. R7b5 {[%emt 0:05:49]} Nf4 {[%emt 0:01:30]} 43. Bf3 {[%emt 0:01:23]} Nd3 {[%emt 0:00:05]} 44. Rd1 {[%emt 0:03:15]} Re3 {[%emt 0:01:08]} 45. Rb3 {[%emt 0:02:44]} Ne5 {[%emt 0:01:59]} 46. Rxe3 {[%emt 0:01:28]} Nxf3+ {[%emt 0:00:15]} 47. gxf3 {[%emt 0:00:36]} Rxd1+ {[%emt 0:00:03]} 48. Kf2 {[%emt 0:00:16]} Kf6 {[%emt 0:00:06]} 49. Ke2 {[%emt 0:00:21]} Rd4 {[%emt 0:03:11]} 50. Re4 {[%emt 0:01:15]} Rd7 {[%emt 0:00:56]} 51. Ke3 {[%emt 0:00:51]} Kf5 {[%emt 0:00:48]} 52. f4 {[%emt 0:01:02]} e6 {[%emt 0:04:45]} 53. Re5+ {[%emt 0:00:23]} Kf6 {[%emt 0:00:04]} 54. c5 {[%emt 0:00:33]} Rd1 {[%emt 0:01:31]} 55. Re4 {[%emt 0:00:34]} Kf5 {[%emt 0:02:25]} 56. Re5+ {[%emt 0:00:27]} Kf6 {[%emt 0:00:04]} 57. Re4 {[%emt 0:00:11]} Kf5 {[%emt 0:00:05]} 58. Re5+ {[%emt 0:00:41]} Kf6 {[%emt 0:00:11]} 59. Ke4 {[%emt 0:00:22]} Ke7 {[%emt 0:00:42]} 60. Rh5 {[%emt 0:00:54]} Kd7 {[%emt 0:00:38]} 61. Rh7+ {[%emt 0:00:29]} Kc6 {[%emt 0:00:04]} 62. Ke5 {[%emt 0:00:29]} Re1+ {[%emt 0:00:16]} 63. Kf6 {[%emt 0:00:04]} Kxc5 {[%emt 0:00:04]} 64. Rd7 {[%emt 0:00:31]} Kc6 {[%emt 0:00:19]} 65. Rd3 {[%emt 0:00:23]} Re4 {[%emt 0:00:34]} 66. Rd2 {[%emt 0:00:31]} Rxf4+ {[%emt 0:00:06]} 67. Kxe6 {[%emt 0:00:05]} Re4+ {[%emt 0:00:06]} 68. Kf5 {[%emt 0:00:10]} Re8 {[%emt 0:00:14] Ke4} 1/2-1/2

[Event "Polonia Wroclaw Masters Cup-IM"]
[Site "Wroclaw"]
[Date "2019.05.01"]
[Round "5.5"]
[White "Praczukowski, Stanislaw"]
[Black "Odnorozhenko, Evgenyi"]
[Result "1/2-1/2"]
[ECO "A40"]
[WhiteElo "2190"]
[BlackElo "2275"]
[Annotator "NA"]
[PlyCount "66"]
[EventDate "2019.04.28"]
[EventType "tourn"]
[EventCountry "POL"]
[SourceTitle "playchess.com"]
[Source "ChessBase"]
[SourceQuality "1"]
[TimeControl "40/5400+30:900+30"]

1. d4 {[%emt 0:00:00]} Nf6 2. c4 e6 3. g3 Bb4+ 4. Nd2 O-O 5. Bg2 d5 6. Ngf3 b6 7. O-O Bb7 8. cxd5 exd5 9. a3 Bd6 10. Nh4 Re8 11. Nc4 Bf8 12. Ne5 Nbd7 13. Nhf3 c5 14. Bg5 Nxe5 15. dxe5 h6 16. exf6 hxg5 17. fxg7 Bxg7 18. Qd2 g4 19. Nh4 {[%emt 0:42:13]} Qf6 20. Rab1 Rad8 21. Rfd1 Ba6 22. e3 d4 23. e4 Bc8 {[%emt 0:36:30]} 24. Qc2 {[%emt 0:13:12]} Bh6 {[%emt 0:04:57]} 25. b4 {[%emt 0:02:48]} cxb4 {[%emt 0:15:09]} 26. axb4 {[%emt 0:01:49]} Bg5 {[%emt 0:00:20]} 27. Nf5 {[%emt 0:00:47]} Bxf5 {[%emt 0:00:40]} 28. exf5 {[%emt 0:00:07]} Re5 {[%emt 0:00:23]} 29. Be4 {[%emt 0:00:57]} Bh6 {[%emt 0:02:24]} 30. Bd3 Bf8 31. Qd2 {[%emt 0:07:46]} Bh6 32. Qc2 Bf8 33. Qd2 Bh6 1/2-1/2

[Event "Polonia Wroclaw Masters Cup-IM"]
[Site "Wroclaw"]
[Date "2019.05.02"]
[Round "6.1"]
[White "Krzywda, Andrzej"]
[Black "Odnorozhenko, Evgenyi"]
[Result "1/2-1/2"]
[ECO "A40"]
[WhiteElo "2195"]
[BlackElo "2275"]
[Annotator "NA"]
[PlyCount "64"]
[EventDate "2019.04.28"]
[EventType "tourn"]
[EventCountry "POL"]
[SourceTitle "playchess.com"]
[Source "ChessBase"]
[SourceQuality "1"]
[TimeControl "40/5400+30:900+30"]

1. d4 {[%emt 0:00:00]} e6 {[%emt 0:01:55]} 2. c4 {[%emt 0:00:14]} Nf6 {[%emt 0:00:07]} 3. g3 {[%emt 0:01:04]} Bb4+ {[%emt 0:00:12]} 4. Bd2 {[%emt 0:00:46]} Qe7 {[%emt 0:00:08]} 5. Bg2 {[%emt 0:01:24]} Nc6 {[%emt 0:00:14]} 6. Nf3 {[%emt 0:01:57]} Bxd2+ {[%emt 0:00:09]} 7. Nbxd2 {[%emt 0:03:40]} d6 {[%emt 0:00:18]} 8. O-O {[%emt 0:01:21]} a5 {[%emt 0:00:05]} 9. e4 {[%emt 0:05:25]} e5 {[%emt 0:00:20]} 10. d5 {[%emt 0:00:32]} Nb8 {[%emt 0:00:05]} 11. Ne1 {[%emt 0:00:48]} O-O {[%emt 0:00:53]} 12. Nd3 {[%emt 0:00:25]} Na6 {[%emt 0:00:12]} 13. f4 {[%emt 0:02:59]} Nd7 {[%emt 0:00:10]} 14. Qe2 {[%emt 0:11:54]} Nac5 {[%emt 0:01:12]} 15. Rae1 {[%emt 0:01:42]} Nxd3 {[%emt 0:00:33]} 16. Qxd3 {[%emt 0:00:06]} Nc5 {[%emt 0:00:05]} 17. Qe3 {[%emt 0:00:24]} Bd7 {[%emt 0:00:30]} 18. Nf3 {[%emt 0:01:43]} f6 {[%emt 0:01:15]} 19. Rf2 {[%emt 0:07:02]} a4 {[%emt 0:03:44]} 20. f5 {[%emt 0:03:49]} b5 {[%emt 0:03:32]} 21. Bf1 {[%emt 0:01:04]} bxc4 {[%emt 0:00:30]} 22. Bxc4 {[%emt 0:00:26]} Rab8 {[%emt 0:00:22]} 23. g4 {[%emt 0:05:08]} Rb4 {[%emt 0:00:29]} 24. b3 {[%emt 0:06:12]} axb3 {[%emt 0:00:54]} 25. axb3 {[%emt 0:00:08]} Rfb8 {[%emt 0:00:09]} 26. Nd2 {[%emt 0:03:02]} Bb5 {[%emt 0:00:15]} 27. Rg2 {[%emt 0:11:42]} Bxc4 {[%emt 0:00:26]} 28. bxc4 {[%emt 0:00:11]} Nb3 {[%emt 0:00:38]} 29. Nf3 {[%emt 0:02:33]} Nc5 {[%emt 0:00:50]} 30. Nd2 {[%emt 0:03:33]} Nb3 {[%emt 0:00:13]} 31. Nf3 {[%emt 0:00:13]} Nc5 32. Nd2 Rb2 1/2-1/2

[Event "Polonia Wroclaw Masters Cup-IM"]
[Site "Wroclaw"]
[Date "2019.05.02"]
[Round "6.2"]
[White "Martynyuk, Elizaveta"]
[Black "Praczukowski, Stanislaw"]
[Result "0-1"]
[ECO "B10"]
[WhiteElo "2141"]
[BlackElo "2190"]
[Annotator "NA"]
[PlyCount "131"]
[EventDate "2019.04.28"]
[EventType "tourn"]
[EventCountry "POL"]
[SourceTitle "playchess.com"]
[Source "ChessBase"]
[SourceQuality "1"]
[TimeControl "40/5400+30:900+30"]

1. e4 {[%emt 0:02:09]} c6 {[%emt 0:00:00]} 2. Nc3 {[%emt 0:00:07]} d5 {[%emt 0:00:00]} 3. Nf3 {[%emt 0:00:20]} Nf6 {[%emt 0:00:51]} 4. e5 {[%emt 0:00:12]} Ne4 {[%emt 0:00:09]} 5. d4 {[%emt 0:00:08]} Qa5 {[%emt 0:00:16]} 6. Bd3 {[%emt 0:01:48]} Bg4 {[%emt 0:00:43]} 7. O-O {[%emt 0:00:38]} Nxc3 {[%emt 0:00:20]} 8. bxc3 {[%emt 0:00:05]} e6 {[%emt 0:00:22]} 9. h3 {[%emt 0:04:55]} Bh5 {[%emt 0:01:04]} 10. g4 {[%emt 0:00:07]} Bg6 {[%emt 0:00:14]} 11. Bg5 {[%emt 0:03:59]} Nd7 {[%emt 0:10:08]} 12. c4 {[%emt 0:02:15]} dxc4 {[%emt 0:08:10]} 13. Bxc4 {[%emt 0:00:20]} h5 {[%emt 0:03:57]} 14. Nh4 {[%emt 0:05:40]} Bh7 {[%emt 0:03:18]} 15. Bd2 {[%emt 0:03:32]} Bb4 {[%emt 0:02:51]} 16. Bxb4 {[%emt 0:00:59]} Qxb4 {[%emt 0:00:12]} 17. Qe2 {[%emt 0:00:16]} Qc3 {[%emt 0:04:37]} 18. Nf5 {[%emt 0:07:57]} exf5 {[%emt 0:09:00]} 19. e6 {[%emt 0:01:45]} O-O-O {[%emt 0:07:20]} 20. exd7+ {[%emt 0:05:22]} Rxd7 {[%emt 0:00:10]} 21. d5 {[%emt 0:01:10]} cxd5 {[%emt 0:01:36]} 22. Bb5 {[%emt 0:00:11]} Rc7 {[%emt 0:05:35]} 23. Rfe1 {[%emt 0:00:23]} Kb8 {[%emt 0:00:22]} 24. gxh5 {[%emt 0:00:29]} Qxh3 {[%emt 0:01:19]} 25. Rad1 {[%emt 0:00:22]} Bg6 {[%emt 0:05:08]} 26. Rd3 {[%emt 0:06:05]} Qxh5 {[%emt 0:04:39]} 27. Qxh5 {[%emt 0:00:07]} Bxh5 {[%emt 0:00:14]} 28. Rh3 {[%emt 0:02:26]} g6 {[%emt 0:01:16]} 29. Bd3 {[%emt 0:00:32]} Rg8 {[%emt 0:08:12]} 30. f3 {[%emt 0:01:16]} a6 {[%emt 0:06:19]} 31. Kf2 {[%emt 0:01:16]} d4 {[%emt 0:01:56]} 32. a4 {[%emt 0:09:28]} Rd8 {[%emt 0:01:08]} 33. Rh4 {[%emt 0:00:34]} Rdd7 {[%emt 0:00:49]} 34. Rb1 {[%emt 0:00:37]} Rd6 {[%emt 0:01:29]} 35. Rb4 {[%emt 0:01:12]} Rcd7 {[%emt 0:00:25]} 36. Kg3 {[%emt 0:01:11]} Kc7 {[%emt 0:00:47]} 37. Rc4+ {[%emt 0:05:55]} Kb6 {[%emt 0:02:35]} 38. Rh1 {[%emt 0:00:43]} f4+ {[%emt 0:02:05]} 39. Kf2 {[%emt 0:01:38]} Re7 {[%emt 0:06:28]} 40. Rh4 {[%emt 0:00:00]} Re3 {[%emt 0:00:00]} 41. Rxf4 {[%emt 0:03:05]} g5 {[%emt 0:03:59]} 42. Rf5 {[%emt 0:03:32]} Bg6 {[%emt 0:01:15]} 43. Rxg5 {[%emt 0:02:02]} Bxd3 {[%emt 0:00:08]} 44. a5+ {[%emt 0:00:03]} Ka7 {[%emt 0:00:12]} 45. cxd3 {[%emt 0:00:05]} Rxd3 {[%emt 0:00:46]} 46. Rc7 {[%emt 0:01:17]} Rf6 {[%emt 0:00:50]} 47. Rd5 {[%emt 0:00:40]} Rfxf3+ {[%emt 0:01:02]} 48. Ke2 {[%emt 0:00:04]} Rfe3+ {[%emt 0:00:31]} 49. Kf2 {[%emt 0:00:07]} Rd2+ {[%emt 0:00:07]} 50. Kf1 {[%emt 0:00:25]} Rc3 {[%emt 0:01:33]} 51. Rdc5 {[%emt 0:01:01]} Rdc2 {[%emt 0:01:04]} 52. Rxc3 {[%emt 0:12:46]} dxc3 {[%emt 0:00:07]} 53. Rxf7 {[%emt 0:00:55]} Ra2 {[%emt 0:00:07]} 54. Rc7 {[%emt 0:00:13]} c2 {[%emt 0:00:06]} 55. Ke1 {[%emt 0:00:04]} Ra1+ {[%emt 0:00:05]} 56. Kd2 {[%emt 0:00:04]} c1=Q+ {[%emt 0:00:52]} 57. Rxc1 {[%emt 0:00:06]} Rxa5 {[%emt 0:00:13]} 58. Rc4 {[%emt 0:00:51]} Kb6 {[%emt 0:00:10]} 59. Rb4+ {[%emt 0:00:36]} Rb5 {[%emt 0:00:05]} 60. Ra4 {[%emt 0:00:14]} Rc5 {[%emt 0:00:07]} 61. Kd3 {[%emt 0:00:04]} a5 {[%emt 0:00:46]} 62. Ra1 {[%emt 0:00:13]} Ka6 {[%emt 0:00:09]} 63. Kd4 {[%emt 0:04:06]} Rc8 {[%emt 0:00:08]} 64. Rh1 {[%emt 0:03:23]} a4 {[%emt 0:00:11]} 65. Kd3 {[%emt 0:00:31]} b5 {[%emt 0:00:08]} 66. Kd4 0-1

[Event "Polonia Wroclaw Masters Cup-IM"]
[Site "Wroclaw"]
[Date "2019.05.02"]
[Round "6.3"]
[White "Czopor, Maciej"]
[Black "Fiedorek, Michal"]
[Result "1/2-1/2"]
[ECO "B18"]
[WhiteElo "2229"]
[BlackElo "2075"]
[Annotator "NA"]
[PlyCount "44"]
[EventDate "2019.04.28"]
[EventType "tourn"]
[EventCountry "POL"]
[SourceTitle "playchess.com"]
[Source "ChessBase"]
[SourceQuality "1"]
[TimeControl "40/5400+30:900+30"]

1. e4 {[%emt 0:00:00]} c6 {[%emt 0:00:00]} 2. d4 {[%emt 0:00:00]} d5 {[%emt 0:00:00]} 3. Nc3 {[%emt 0:00:06]} dxe4 {[%emt 0:00:00]} 4. Nxe4 {[%emt 0:00:04]} Bf5 {[%emt 0:00:06]} 5. Ng3 {[%emt 0:00:16]} Bg6 {[%emt 0:00:09]} 6. h4 {[%emt 0:00:33]} h6 {[%emt 0:00:22]} 7. Nf3 {[%emt 0:00:31]} e6 {[%emt 0:00:10]} 8. h5 {[%emt 0:01:13]} Bh7 {[%emt 0:00:23]} 9. Bd3 {[%emt 0:00:25]} Bxd3 {[%emt 0:00:12]} 10. Qxd3 {[%emt 0:00:09]} Nf6 {[%emt 0:01:44]} 11. Bf4 {[%emt 0:01:00]} Bd6 {[%emt 0:01:11]} 12. Be5 {[%emt 0:01:24]} Bxe5 {[%emt 0:01:51]} 13. Nxe5 {[%emt 0:00:14]} Qd5 {[%emt 0:01:08]} 14. c4 {[%emt 0:01:33]} Qa5+ {[%emt 0:01:12]} 15. Qd2 {[%emt 0:00:25]} Qxd2+ {[%emt 0:00:13]} 16. Kxd2 {[%emt 0:00:05]} Nbd7 {[%emt 0:01:02]} 17. Kc3 {[%emt 0:01:04]} c5 {[%emt 0:01:40]} 18. Nxd7 {[%emt 0:01:49]} cxd4+ {[%emt 0:00:08]} 19. Kxd4 {[%emt 0:00:06]} O-O-O {[%emt 0:01:05]} 20. Kc3 {[%emt 0:02:18]} Rxd7 {[%emt 0:01:26]} 21. Rad1 {[%emt 0:00:13]} Rhd8 {[%emt 0:00:12]} 22. Rxd7 {[%emt 0:01:06]} Rxd7 {[%emt 0:00:14]} 1/2-1/2

[Event "Polonia Wroclaw Masters Cup-IM"]
[Site "Wroclaw"]
[Date "2019.05.03"]
[Round "7.1"]
[White "Baum, Jonasz"]
[Black "Krzywda, Andrzej"]
[Result "1-0"]
[ECO "A67"]
[WhiteElo "2290"]
[BlackElo "2195"]
[Annotator "NA"]
[PlyCount "77"]
[EventDate "2019.04.28"]
[EventType "tourn"]
[EventCountry "POL"]
[SourceTitle "playchess.com"]
[Source "ChessBase"]
[SourceQuality "1"]
[TimeControl "40/5400+30:900+30"]

1. d4 {[%emt 0:00:00]} Nf6 {[%emt 0:00:00]} 2. c4 {[%emt 0:00:00]} c5 {[%emt 0:00:00]} 3. d5 {[%emt 0:00:00]} e6 {[%emt 0:00:00]} 4. Nc3 {[%emt 0:00:00]} exd5 {[%emt 0:00:00]} 5. cxd5 {[%emt 0:00:00]} d6 {[%emt 0:00:00]} 6. e4 {[%emt 0:00:24]} g6 {[%emt 0:00:05]} 7. f4 {[%emt 0:00:12]} Bg7 {[%emt 0:00:23]} 8. Bb5+ {[%emt 0:00:08]} Nfd7 {[%emt 0:00:16]} 9. Nf3 {[%emt 0:00:13]} O-O {[%emt 0:00:33]} 10. O-O {[%emt 0:00:11]} a6 {[%emt 0:01:14]} 11. Bd3 {[%emt 0:00:10]} b5 {[%emt 0:01:32]} 12. Kh1 {[%emt 0:00:08]} Re8 {[%emt 0:04:26]} 13. f5 {[%emt 0:14:34]} b4 {[%emt 0:10:07]} 14. Ne2 {[%emt 0:00:45]} c4 {[%emt 0:03:40]} 15. Bc2 {[%emt 0:10:00]} Nc5 {[%emt 0:03:29]} 16. Ng3 {[%emt 0:01:35]} Nbd7 {[%emt 0:03:13]} 17. Bg5 {[%emt 0:09:52]} Qc7 {[%emt 0:03:48]} 18. Nd4 {[%emt 0:07:26]} Ne5 {[%emt 0:08:50]} 19. f6 {[%emt 0:01:10]} h6 {[%emt 0:04:21]} 20. Bd2 {[%emt 0:08:26]} Bg4 {[%emt 0:01:58]} 21. Qb1 {[%emt 0:01:01]} c3 {[%emt 0:08:04]} 22. bxc3 {[%emt 0:01:50]} bxc3 {[%emt 0:00:08]} 23. Bxc3 {[%emt 0:00:27]} Bxf6 {[%emt 0:08:46]} 24. h3 {[%emt 0:19:14]} Bc8 {[%emt 0:09:14]} 25. Qe1 {[%emt 0:16:41]} Bg7 {[%emt 0:04:20]} 26. Rb1 {[%emt 0:00:27]} Qe7 {[%emt 0:04:15]} 27. Rb6 {[%emt 0:03:26]} Ncd7 {[%emt 0:10:08]} 28. Ngf5 {[%emt 0:01:37]} gxf5 {[%emt 0:00:34]} 29. Nxf5 {[%emt 0:00:04]} Qg5 {[%emt 0:01:42]} 30. Rxd6 {[%emt 0:00:20]} Nf6 {[%emt 0:02:58]} 31. Nxg7 {[%emt 0:01:06]} Kxg7 {[%emt 0:01:33]} 32. Rdxf6 {[%emt 0:00:18]} Ra7 {[%emt 0:01:28]} 33. Qf2 {[%emt 0:01:51]} Rae7 {[%emt 0:01:38]} 34. Rxf7+ {[%emt 0:00:21]} Kg6 {[%emt 0:00:32]} 35. Qf6+ {[%emt 0:00:43]} Qxf6 {[%emt 0:01:05]} 36. R1xf6+ {[%emt 0:00:08]} Kg5 {[%emt 0:00:47]} 37. Bd2+ {[%emt 0:00:06]} Kh4 {[%emt 0:00:26]} 38. Rxh6+ {[%emt 0:00:05]} Kg3 {[%emt 0:00:11]} 39. Be1# {[%emt 0:00:03]} 1-0

[Event "Polonia Wroclaw Masters Cup-IM"]
[Site "Wroclaw"]
[Date "2019.05.03"]
[Round "7.2"]
[White "Mahitosh Dey"]
[Black "Stachowiak, Kamil"]
[Result "0-1"]
[ECO "A43"]
[WhiteElo "2187"]
[BlackElo "2439"]
[Annotator "NA"]
[PlyCount "86"]
[EventDate "2019.04.28"]
[EventType "tourn"]
[EventCountry "POL"]
[SourceTitle "playchess.com"]
[Source "ChessBase"]
[SourceQuality "1"]
[TimeControl "40/5400+30:900+30"]

1. d4 {[%emt 0:04:46]} Nf6 {[%emt 0:00:00]} 2. Nf3 {[%emt 0:00:06]} c5 {[%emt 0:00:00]} 3. d5 {[%emt 0:00:08]} g6 {[%emt 0:00:12]} 4. c4 {[%emt 0:01:56]} b5 {[%emt 0:00:09]} 5. Nc3 {[%emt 0:00:25]} bxc4 {[%emt 0:00:27]} 6. e4 {[%emt 0:00:06]} d6 {[%emt 0:00:06]} 7. Bxc4 {[%emt 0:00:04]} Bg7 {[%emt 0:00:22]} 8. O-O {[%emt 0:00:10]} O-O {[%emt 0:00:10]} 9. Bf4 {[%emt 0:01:25]} Bg4 {[%emt 0:02:28]} 10. Be2 {[%emt 0:00:08]} Bxf3 {[%emt 0:04:56]} 11. Bxf3 {[%emt 0:00:35]} Nbd7 {[%emt 0:00:10]} 12. Rb1 {[%emt 0:04:18]} Rb8 {[%emt 0:00:47]} 13. Qe2 {[%emt 0:02:07]} Ne8 {[%emt 0:01:11]} 14. Bg4 {[%emt 0:02:19]} Nc7 {[%emt 0:02:53]} 15. Bxd7 {[%emt 0:00:13]} Qxd7 {[%emt 0:00:07]} 16. e5 {[%emt 0:01:52]} Rb4 {[%emt 0:03:49]} 17. Bg3 {[%emt 0:01:27]} f5 {[%emt 0:10:19]} 18. a3 {[%emt 0:08:42]} Rd4 {[%emt 0:12:27]} 19. f3 {[%emt 0:03:11]} Nxd5 {[%emt 0:12:31]} 20. exd6 {[%emt 0:02:24]} exd6 {[%emt 0:00:55]} 21. Nxd5 {[%emt 0:00:13]} Rxd5 {[%emt 0:00:11]} 22. Qc4 {[%emt 0:00:03]} Qf7 {[%emt 0:00:20]} 23. Rbd1 {[%emt 0:02:03]} Rxd1 {[%emt 0:03:27]} 24. Qxf7+ {[%emt 0:00:04]} Kxf7 {[%emt 0:00:11]} 25. Rxd1 {[%emt 0:00:03]} Bd4+ {[%emt 0:00:43]} 26. Bf2 {[%emt 0:00:09]} Bxf2+ {[%emt 0:00:21]} 27. Kxf2 {[%emt 0:00:05]} Ke6 {[%emt 0:00:13]} 28. b4 {[%emt 0:02:35]} Rb8 {[%emt 0:01:52]} 29. bxc5 {[%emt 0:00:09]} dxc5 {[%emt 0:01:59]} 30. Re1+ {[%emt 0:00:04]} Kd6 {[%emt 0:00:34]} 31. Rd1+ {[%emt 0:00:03]} Kc6 {[%emt 0:00:07]} 32. Re1 {[%emt 0:00:03]} Rb2+ {[%emt 0:00:43]} 33. Kg3 {[%emt 0:00:06]} c4 {[%emt 0:00:44]} 34. Re6+ {[%emt 0:00:03]} Kc5 {[%emt 0:03:23]} 35. Re7 {[%emt 0:00:04]} c3 {[%emt 0:01:09]} 36. Rc7+ {[%emt 0:00:10]} Kd4 {[%emt 0:00:09]} 37. Rxh7 {[%emt 0:00:42]} Rb5 {[%emt 0:01:17]} 38. Rd7+ {[%emt 0:00:23]} Rd5 {[%emt 0:00:26]} 39. Rc7 {[%emt 0:00:04]} Rc5 {[%emt 0:00:07]} 40. Rd7+ {[%emt 0:00:00]} Ke3 {[%emt 0:00:00]} 41. Re7+ {[%emt 0:00:22]} Kd2 {[%emt 0:01:31]} 42. Rd7+ {[%emt 0:00:16]} Ke1 {[%emt 0:00:16]} 43. Re7+ {[%emt 0:01:06]} Kf1 {[%emt 0:00:23]} 0-1

[Event "Polonia Wroclaw Masters Cup-IM"]
[Site "Wroclaw"]
[Date "2019.05.03"]
[Round "7.3"]
[White "Fiedorek, Michal"]
[Black "Frolov, Artur"]
[Result "0-1"]
[ECO "B69"]
[WhiteElo "2075"]
[BlackElo "2440"]
[Annotator "RC"]
[PlyCount "76"]
[EventDate "2019.04.28"]
[EventType "tourn"]
[EventCountry "POL"]
[SourceTitle "playchess.com"]
[Source "ChessBase"]
[SourceQuality "1"]
[TimeControl "40/5400+30:900+30"]

1. e4 {[%emt 0:00:00]} c5 {[%emt 0:02:01]} 2. Nf3 {[%emt 0:00:00]} Nc6 {[%emt 0:00:08]} 3. d4 {[%emt 0:00:00]} cxd4 {[%emt 0:00:04]} 4. Nxd4 {[%emt 0:00:00]} Nf6 {[%emt 0:00:10]} 5. Nc3 {[%emt 0:00:36]} d6 {[%emt 0:00:06]} 6. Bg5 {[%emt 0:01:03]} e6 7. Qd2 {[%emt 0:00:33]} a6 {[%emt 0:00:23]} 8. O-O-O {[%emt 0:00:36]} Bd7 {[%emt 0:00:04]} 9. f4 {[%emt 0:00:56]} Be7 {[%emt 0:00:05]} 10. Nf3 {[%emt 0:00:25]} b5 {[%emt 0:00:05]} 11. Bxf6 {[%emt 0:00:27]} gxf6 {[%emt 0:00:05]} 12. f5 {[%emt 0:00:32]} Qa5 {[%emt 0:02:59]} 13. Kb1 {[%emt 0:00:21]} h5 {[%emt 0:05:48]} 14. g3 {[%emt 0:04:22]} Ne5 {[%emt 0:18:44]} 15. Nxe5 {[%emt 0:00:51]} fxe5 {[%emt 0:00:03]} 16. Bh3 {[%emt 0:03:26]} b4 {[%emt 0:05:08]} 17. Ne2 {[%emt 0:00:38]} Qc5 {[%emt 0:00:09]} 18. Nc1 {[%emt 0:03:11]} a5 {[%emt 0:02:52]} 19. Nd3 {[%emt 0:02:29]} Qc6 {[%emt 0:00:48]} 20. Rhf1 {[%emt 0:03:04]} h4 {[%emt 0:04:50]} 21. Bg4 {[%emt 0:29:47]} hxg3 {[%emt 0:11:58]} 22. hxg3 {[%emt 0:01:03]} Rc8 {[%emt 0:02:18]} 23. Qf2 {[%emt 0:16:58]} Qxe4 {[%emt 0:17:25]} 24. fxe6 {[%emt 0:00:37]} fxe6 {[%emt 0:00:33]} 25. Qf7+ {[%emt 0:04:53]} Kd8 {[%emt 0:00:04]} 26. Bxe6 {[%emt 0:07:39]} Rh7 {[%emt 0:01:43]} 27. Bd5 {[%emt 0:06:28]} Rxf7 {[%emt 0:00:52]} 28. Bxe4 {[%emt 0:00:07]} Rg7 {[%emt 0:02:50]} 29. Rd2 {[%emt 0:06:13]} Kc7 {[%emt 0:04:06]} 30. Rh2 {[%emt 0:01:38]} Rxg3 {[%emt 0:09:46]} 31. Rh7 {[%emt 0:00:47]} Re8 {[%emt 0:00:03]} 32. Rff7 {[%emt 0:04:10]} Rg1+ {[%emt 0:00:05]} 33. Nc1 {[%emt 0:00:04]} Kd8 {[%emt 0:00:01]} 34. c3 {[%emt 0:02:02]} Be6 {[%emt 0:00:38]} 35. Rf2 {[%emt 0:00:38]} d5 {[%emt 0:02:00]} 36. Bd3 {[%emt 0:00:51]} bxc3 {[%emt 0:02:02]} 37. bxc3 {[%emt 0:00:09]} Ba3 {[%emt 0:00:26]} 38. Rc2 {[%emt 0:00:11]} Re7 {[%emt 0:00:52]} 0-1